Cogmind - Beta 11 --- EXPLORER MODE // 2022.04.09 @ 15:20:16 Player: Grimbling Result: Destroyed by Alpha 7 with Heavy Quantum Rifle Performance ------------- Evolutions (9) 4500 Regions Visited (23) 4600 Robots Destroyed (406) 2030 Value Destroyed (22989) 22989 Prototype IDs (25) 500 Alien Tech Used (0) 0 Bonus (7206) 7206 TOTAL SCORE: 41825 Bonus ------- High Alert Combat Kills 3049 Follower Combat Kills 2115 Entered Garrisons 400 Used RIF Installer 1000 Entered DSFs 500 Network Hubs Disabled 200 Met R17 at Cetus 500 Friendly Fire -558 Cogmind --------- Core Integrity 0/1600 Matter 300/300 Energy 21/100 System Corruption 32% Temperature Cool (9) Movement Walking (100) Location -1/Command Parts ------- > --- POWER (4) -------- (None) > --- PROPULSION (4) --- Enhanced Biometal Leg Enhanced Biometal Leg > --- UTILITY (14) ----- Advanced Targeting Computer Recoil Nullifier EM Disruption Field > --- WEAPON (4) ------- Enhanced Quantum Rifle > --- INVENTORY (5) ---- High-capacity Storage Unit Point Defense Array Proton Burst Cannon Proton Burst Cannon KE Penetrator Peak State ------------ > --- POWER ------------ Micro Antimatter Reactor Micro Antimatter Reactor Light Quantum Reactor Light Quantum Reactor > --- PROPULSION ------- Biometal Heavy Treads Biometal Heavy Treads > --- UTILITY ---------- Advanced Heat Sink Advanced Heat Sink High-capacity Storage Unit Advanced Matter Compressor Experimental Matter Compressor Advanced Targeting Computer Advanced Target Analyzer Quantum Capacitor Advanced Transmission Jammer Centrium Heavy Armor Plating Centrium Heavy Armor Plating > --- WEAPON ----------- KE Penetrator Railgun Railgun Railgun > --- INVENTORY -------- Quantum Reactor Light Quantum Reactor Improved Heavy Siege Treads Improved Heavy Siege Treads High-capacity Storage Unit Recoil Nullifier Advanced Phase Shifter Advanced Force Field Point Defense Array Enhanced Quantum Rifle Enhanced Quantum Rifle Enhanced Quantum Rifle Proton Burst Cannon Proton Burst Cannon Proton Burst Cannon Heavy Machine Gun Heavy Machine Gun Gamma Bomb Array [Rating: 207] Favorites ----------- Power Micro Antimatter Reactor Engine Improved Ion Engine Power Core Neutrino Core Reactor Micro Antimatter Reactor Propulsion Advanced Treads Treads Advanced Treads Leg Enhanced Biometal Leg Utility High-capacity Storage Unit Device Advanced Heat Sink Storage High-capacity Storage Unit Processor Advanced Target Analyzer Hackware Improved System Shield Protection Light Armor Plating Weapon Heavy Machine Gun Energy Gun Gatling Laser Energy Cannon Enhanced Nova Cannon Ballistic Gun Heavy Machine Gun Ballistic Cannon Linear Accelerator Launcher Missile Launcher Special Weapon Remote Datajack Impact Weapon Powered Hammer Build | -11 -10 -10 -9 -9 -9 -9 -7 -7 -7 -6 -6 -5 -5 -5 -5 -5 -4 -3 -2 -1 -1 -1 -1 ------- Run | Scr Mat Min Mat Sto Gar Rec Fac Low Low Fac DSF Fac Ext Cet Arc Hub Fac Res Res Acc Gar Acc Com Slots Evolved 19 | . 1 . 2 . . . 4 . . 2 . 2 . . . . 2 2 2 2 . . . Power 3 | . . . . . . . 1 . . . . . . . . . . 1 . 1 . . . Propulsion 2 | . . . 1 . . . 1 . . . . . . . . . . . . . . . . Utility 12 | . 1 . 1 . . . 2 . . 2 . 2 . . . . 1 1 2 . . . . Weapon 2 | . . . . . . . . . . . . . . . . . 1 . . 1 . . . Parts Attached 338 | 6 3 . 9 10 4 1 17 1 . 3 10 30 29 11 6 11 13 13 4 19 52 58 28 Power 50 | 1 . . 1 1 . . 2 . . 1 . 4 2 3 2 2 4 1 . 4 12 5 5 Engine 12 | 1 . . 1 1 . . 2 . . . . 3 . 1 . . 2 . . 1 . . . Core 7 | . . . . . . . . . . 1 . 1 2 1 1 . 1 . . . . . . Reactor 31 | . . . . . . . . . . . . . . 1 1 2 1 1 . 3 12 5 5 Propulsion 51 | 2 . . 1 3 1 1 5 1 . . 3 4 6 2 . 1 . 2 . 2 7 5 5 Treads 48 | 2 . . 1 3 1 1 5 1 . . 3 4 5 2 . 1 . 2 . 2 7 5 3 Leg 3 | . . . . . . . . . . . . . 1 . . . . . . . . . 2 Wheel . | . . . . . . . . . . . . . . . . . . . . . . . . Hover . | . . . . . . . . . . . . . . . . . . . . . . . . Flight . | . . . . . . . . . . . . . . . . . . . . . . . . Utility 128 | 2 1 . 3 2 3 . 5 . . 2 3 17 10 3 2 2 7 6 4 7 11 31 7 Device 72 | 1 . . 1 1 1 . 1 . . 1 . 11 3 2 . 1 5 4 1 3 5 24 7 Storage 13 | 1 . . 1 . . . 1 . . . . 1 2 . . . . 2 2 2 1 . . Processor 15 | . . . . . . . . . . . 2 1 2 . 1 . 1 . 1 2 1 4 . Hackware 4 | . . . . . . . 1 . . . . 2 . . . . . . . . 1 . . Protection 24 | . 1 . 1 1 2 . 2 . . 1 1 2 3 1 1 1 1 . . . 3 3 . Artifact . | . . . . . . . . . . . . . . . . . . . . . . . . Weapon 109 | 1 2 . 4 4 . . 5 . . . 4 5 11 3 2 6 2 4 . 6 22 17 11 Energy Gun 6 | . . . . . . . . . . . . . . . . 2 . . . . 1 . 3 Energy Cannon 5 | . . . . . . . . . . . . . . . . . . . . . 4 1 . Ballistic Gun 66 | 1 1 . 4 4 . . 4 . . . 2 4 8 3 1 3 1 . . 1 10 14 5 Ballistic Cannon 20 | . 1 . . . . . . . . . 1 1 2 . 1 . 1 4 . 4 4 . 1 Launcher 9 | . . . . . . . . . . . 1 . 1 . . 1 . . . 1 2 2 1 Special Weapon 2 | . . . . . . . 1 . . . . . . . . . . . . . . . 1 Impact Weapon 1 | . . . . . . . . . . . . . . . . . . . . . 1 . . Slashing Weapon . | . . . . . . . . . . . . . . . . . . . . . . . . Piercing Weapon . | . . . . . . . . . . . . . . . . . . . . . . . . Special Melee Weapon . | . . . . . . . . . . . . . . . . . . . . . . . . Unidentified Prototypes 18 | . . . . . . . . . . 1 . 1 1 3 . 2 1 . 1 . . 6 2 Corrupted Parts 1 | . . . . . . . . . . . . . . . . . . . . . . . 1 System Corruption 1 | . . . . . . . . . . . . . . . . . . . . . . . 1 Parts Lost 120 | . . . . . 2 . 4 . . . 9 11 3 . 2 5 10 . . 15 19 12 28 Power 23 | . . . . . . . 1 . . . 1 1 . . 1 . 4 . . 3 4 2 6 Propulsion 21 | . . . . . 1 . 1 . . . 3 3 2 . . 1 . . . 2 3 1 4 Utility 50 | . . . . . 1 . 1 . . . 5 6 . . 1 3 5 . . 6 4 8 10 Weapon 26 | . . . . . . . 1 . . . . 1 1 . . 1 1 . . 4 8 1 8 Highest Loss Streak 28 | . . . . . 2 . 2 . . . 5 3 2 . 1 2 8 . . 4 9 4 28 To Critical Strikes 8 | . . . . . . . 1 . . . . 1 . . . 1 . . . 1 . . 4 Average Slot Usage (%) 90 | . 99 100 100 100 99 100 99 100 100 96 82 89 94 92 87 85 66 80 81 76 85 85 81 Engine 5 | . 12 12 10 10 10 10 13 14 14 7 1 4 5 5 1 . 3 4 4 1 . . . Core 1 | . . . . . . . . . . 4 6 5 4 4 . . 2 . . . . . . Reactor 5 | . . . . . . . . . . . . . . . 8 11 2 8 8 11 14 13 14 Treads 16 | . 25 25 30 30 29 30 28 28 28 25 24 15 16 15 11 11 10 8 8 6 9 8 6 Device 20 | . 12 12 20 20 19 20 16 21 21 22 11 27 23 27 22 19 17 29 31 26 15 19 18 Storage 10 | . 12 12 10 10 10 10 14 14 14 12 8 5 8 11 11 11 10 9 11 11 11 11 10 Processor 5 | . . . . . . . . . . . 9 7 14 11 11 11 9 5 4 3 10 8 6 Hackware 1 | . . . . . . . 3 . . . . 4 4 . . . . . . . . . . Protection 6 | . 12 12 10 10 10 10 7 7 7 10 6 4 2 5 10 11 1 . . . 7 5 6 Ballistic Gun 11 | . 12 12 13 20 20 20 10 14 14 12 11 8 9 11 11 8 5 . . . 7 14 14 Ballistic Cannon 2 | . 11 12 6 . . . . . . . . 1 . . . . 3 12 12 10 2 . . Naked Turns . | . . . . . . . . . . . . . . . . . . . . . . . . Heaviest Build 187 | 16 22 22 38 41 41 41 57 54 54 56 56 91 95 102 117 120 109 128 135 160 156 187 182 Greatest Support 160 | 40 40 40 60 60 60 60 88 88 88 88 88 115 130 160 160 160 160 160 160 160 150 150 150 Greatest Overweight (x) 4 | . . . . . . . . . . . . 4 2 . . . . . . 1 1 1 1 Average Overweight (x) . | . . . . . . . . . . . . . . . . . . . . . . . . Largest Inventory Capacity 20 | 10 10 10 15 15 15 15 15 15 15 15 15 20 20 20 20 20 20 20 20 20 20 20 20 Average Capacity 17 | 9 10 10 12 15 15 15 15 15 15 15 15 19 20 20 20 20 20 20 20 20 20 20 19 Most Carried 20 | 3 10 10 15 15 15 15 15 15 15 15 15 18 20 20 20 20 15 20 19 19 20 20 20 Average Carried 16 | 2 5 9 11 14 14 14 13 14 15 14 11 13 18 19 18 19 13 17 18 17 15 19 19 Final Capacity 20 | 10 10 10 15 15 15 15 15 15 15 15 15 20 20 20 20 20 20 20 20 20 20 20 5 Final Carried 20 | 3 9 10 15 15 14 15 15 15 15 15 12 16 20 20 18 16 12 20 19 18 18 19 5 Class Distribution -------------------- 33% | Hacker-Mutant 22% | Scavenger-Tank 18% | Scavenger-Mutant 10% | Scavenger-Gunner 8% | Commander-Mutant 3% | Scavenger-Skirmisher Dominant Class ---------------- Hacker-Mutant | -10/Materials Hacker-Mutant | -10/Mines Hacker-Mutant | -9/Materials Hacker-Mutant | -9/Storage Hacker-Mutant | -9/Garrison Commander-Mutant | -9/Recycling Commander-Mutant | -7/Factory Hacker-Mutant | -7/Lower Caves Hacker-Mutant | -7/Lower Caves Hacker-Mutant | -6/Factory Hacker-Mutant | -6/DSF Hacker-Mutant | -5/Factory Scavenger-Mutant | -5/Extension Scavenger-Mutant | -5/Cetus Scavenger-Mutant | -5/Archives Scavenger-Mutant | -5/Hub_04(d) Scavenger-Gunner | -4/Factory Scavenger-Skirmisher | -3/Research Scavenger-Gunner | -2/Research Generator-Gunner | -1/Access Scavenger-Gunner | -1/Garrison Scavenger-Tank | -1/Access Scavenger-Tank | -1/Command Resources | -11 -10 -10 -9 -9 -9 -9 -7 -7 -7 -6 -6 -5 -5 -5 -5 -5 -4 -3 -2 -1 -1 -1 -1 ----------- Run | Scr Mat Min Mat Sto Gar Rec Fac Low Low Fac DSF Fac Ext Cet Arc Hub Fac Res Res Acc Gar Acc Com Matter Collected 17617 | 206 133 192 245 444 667 138 648 182 42 38 238 847 957 318 225 600 257 685 175 2061 2415 4050 1854 Remotely 5010 | . . . 245 432 474 . . . . 38 150 500 702 314 225 600 113 . . . . 1217 . Salvage Created 19847 | . 92 117 202 893 966 71 782 55 49 . 391 1176 799 568 484 1300 329 488 67 1840 1717 5403 2058 Parts 971 | . 3 7 13 71 52 9 41 5 2 . 9 52 43 26 29 72 15 34 . 84 53 243 108 Haulers Intercepted 9 | . . . . 3 . . 2 . . . . . . . . 1 . 1 . . . 2 . Recyclers Shooed 6 | . . . . . . 1 . . . 1 . . 1 . . 1 . . . . . 2 . Parts Field Recycled . | . . . . . . . . . . . . . . . . . . . . . . . . Retrieved Matter . | . . . . . . . . . . . . . . . . . . . . . . . . Parts Self-Destructed . | . . . . . . . . . . . . . . . . . . . . . . . . Prevented . | . . . . . . . . . . . . . . . . . . . . . . . . Kills | -11 -10 -10 -9 -9 -9 -9 -7 -7 -7 -6 -6 -5 -5 -5 -5 -5 -4 -3 -2 -1 -1 -1 -1 ------- Run | Scr Mat Min Mat Sto Gar Rec Fac Low Low Fac DSF Fac Ext Cet Arc Hub Fac Res Res Acc Gar Acc Com Combat Hostiles Destroyed 346 | . 2 2 5 15 24 6 14 2 2 . 9 23 15 8 4 23 5 12 1 37 37 70 30 Guns 254 | . . . 5 15 24 6 14 2 2 . 4 16 13 8 4 20 4 . . 2 16 70 29 Cannons 79 | . 2 2 . . . . . . . . . 6 2 . . . 1 12 1 31 21 . 1 AOE 13 | . . . . . . . . . . . 5 1 . . . 3 . . . 4 . . . Classes Destroyed 23 | . 1 3 2 2 . 1 3 . . . 2 3 1 . . . . . . 2 1 1 1 Worker 13 | . . 1 . . . . 6 . . . . 1 . . . 3 . 1 . . . . 1 Builder 7 | . . . . . . . . . . . . 1 1 . . 1 . 2 . 2 . . . Tunneler 1 | . . . . . . . . . . . . 1 . . . . . . . . . . . Hauler 9 | . . . . 3 . . 2 . . . . . . . . 1 . 1 . . . 2 . Recycler 7 | . . 1 . . . . . . . . . . 1 . . . . . . 1 . 4 . Mechanic 2 | . . . . . . . 1 . . . . . . . . . . . . . . 1 . Operator 10 | . . . . 1 . . . . . . . . 1 . 3 2 . 1 . . . 2 . Drone 6 | . . . . . . 6 . . . . . . . . . . . . . . . . . Watcher 17 | . . . 1 1 . . 1 . . . . 2 1 1 . 1 . . . 2 1 5 1 Swarmer 65 | . . 2 2 2 5 . 6 2 2 . 2 4 9 1 . 5 . . . 2 9 8 4 Saboteur 1 | . . . . . . . . . . . . . . . . . . . . . . 1 . Grunt 104 | . 2 . 1 6 18 . 3 . . . 3 8 2 5 . 11 . . . 14 11 17 3 Brawler 5 | . . . . . . . . . . . . . . . . . . . . 2 2 . 1 Duelist 2 | . . . . . . . . . . . . . . . . . . . . 1 . 1 . Protector 2 | . . . . . . . 1 . . . . . . . . . . . . . 1 . . Sentry 44 | . . . 2 8 1 . 1 . . . 1 3 2 . 4 2 2 2 . 4 5 4 3 Demolisher 1 | . . . . . . . . . . . . . . . . . . . . . 1 . . Specialist 2 | . . . . . . . . . . . 2 . . . . . . . . . . . . Hunter 27 | . . . . . . . . . . . . 2 1 . . 3 2 . . 2 4 9 4 Programmer 73 | . . . . . . . 3 . . . . 6 . . . 2 . 10 . 12 3 28 9 Heavy 3 | . . . . . . . . . . . 1 . . . . . 1 . . . . 1 . Behemoth 4 | . . . . . . . . . . . . . 1 . . . . . 1 . 1 1 . Cetus Guard 2 | . . . . . . . . . . . . . . 2 . . . . . . . . . Striker 1 | . . . . . . . . . . . . . . . . . . . . . . . 1 Thug 4 | . . . . . . . . . . . . . . . . . . . . . . . 4 Butcher 1 | . . . . . . . . . . . . . . . . . . . . . . . 1 Guerrilla 1 | . . . . . . . . . . . . . . 1 . . . . . . . . . Best Kill Streak 16 | . 2 2 2 3 7 1 4 2 2 . 7 4 4 2 2 16 3 5 1 9 5 9 4 Combat Bots Only 9 | . 2 2 2 3 7 1 3 2 2 . 7 4 3 2 2 8 3 4 1 9 5 9 4 Max Kills in Single Turn 3 | . 1 1 2 1 1 1 2 1 1 . 2 2 2 1 1 2 1 1 1 2 1 3 2 Gunslinging 2 | . . . 1 . . . . . . . . . . . . 1 . . . . . 2 1 Exploded 2 | . . . . . . . . . . . 2 1 . . . 2 . . . 2 . . . Melee . | . . . . . . . . . . . . . . . . . . . . . . . . Uniques/NPCs Destroyed . | . . . . . . . . . . . . . . . . . . . . . . . . Combat | -11 -10 -10 -9 -9 -9 -9 -7 -7 -7 -6 -6 -5 -5 -5 -5 -5 -4 -3 -2 -1 -1 -1 -1 -------- Run | Scr Mat Min Mat Sto Gar Rec Fac Low Low Fac DSF Fac Ext Cet Arc Hub Fac Res Res Acc Gar Acc Com Damage Taken 29230 | . 32 23 77 413 681 . 770 45 18 . 1166 1813 630 315 158 2678 1228 551 227 2744 4298 3887 7476 Core 2489 | . 9 . . 43 96 . 31 10 . . 193 99 35 33 14 200 55 58 . 289 319 78 927 Absorbed by Shields 4720 | . . . . . . . 10 . . . . . 145 279 48 516 . . . . 205 2030 1487 Reduced by Siege Mode 953 | . . . . . . . . . . . . . . . . . . . 20 77 255 139 462 Redirected to Shielding 368 | . . . . . . . . . . . 113 33 . . . 34 69 . . . 69 50 . Core Remaining (%) 87 | 100 . 96 . . . 65 . . 94 . 77 . . . . 61 95 95 100 . . . . Volleys Fired 1135 | . 7 6 7 55 79 16 103 4 3 1 24 91 62 18 18 69 27 29 4 80 136 211 85 Largest 4 | . 2 2 2 2 2 2 2 2 2 2 2 2 2 2 2 2 2 3 3 4 4 4 4 Hottest 263 | . 55 55 55 46 46 46 56 56 56 56 64 83 90 70 70 160 108 197 197 263 260 128 166 Shots Fired 2880 | . 14 12 14 110 158 32 133 10 6 2 48 179 118 39 40 131 44 87 12 197 372 818 304 Gun 2328 | . 7 6 13 110 158 32 123 10 6 2 43 156 98 39 40 127 42 . . 8 209 814 285 Cannon 514 | . 7 6 1 . . . . . . . . 23 12 . . . 2 87 12 186 163 . 15 Launcher 28 | . . . . . . . . . . . 5 . 8 . . 4 . . . 3 . 4 4 Special 10 | . . . . . . . 10 . . . . . . . . . . . . . . . . Kinetic 2798 | . 14 12 14 110 158 32 123 10 6 2 43 179 110 39 40 100 44 87 12 194 355 814 300 Thermal 44 | . . . . . . . . . . . . . . . . 27 . . . . 17 . . Explosive 24 | . . . . . . . . . . . 5 . 8 . . 4 . . . 3 . 4 . Electromagnetic 4 | . . . . . . . . . . . . . . . . . . . . . . . 4 Robot Hit Streak 107 | . 10 12 19 25 23 25 28 3 3 2 20 28 20 32 21 40 20 47 19 86 105 60 107 Robot Miss Streak 4 | . 1 1 1 1 1 3 4 1 1 1 2 3 3 1 1 4 1 2 . 2 1 2 2 Penetration Max 2 | . . . . . . . 1 . . . 1 2 1 1 1 1 1 . . 1 1 1 2 Secondary Targets 41 | . . . 1 1 5 . 1 . . . 1 . 2 2 . 5 2 . . . . 15 6 Max Gunslinging Chain 2 | . . . 1 1 1 . 1 . . . 1 . 1 1 . 1 1 . . . . 2 1 Shots Hit Robots 2355 | . 12 9 12 93 128 17 105 5 4 1 43 155 78 37 31 115 41 70 12 146 309 683 249 Core Hits 961 | . 4 4 8 35 51 8 35 2 2 1 26 82 39 21 13 88 11 24 5 66 122 227 87 Critical Kills 51 | . . . . . . . 1 . . . . 1 1 3 4 8 1 . . . 6 17 9 Critical Parts Destroyed 74 | . . . . . 1 . 2 . 1 . . 2 1 2 1 10 1 . . 1 9 32 11 Critical Strikes 176 | . . . . . 1 . 3 . 1 . . 3 2 5 6 18 2 4 1 10 46 49 25 Destroy 134 | . . . . . 1 . 3 . 1 . . 3 2 5 6 18 2 . . 1 21 49 22 Blast 42 | . . . . . . . . . . . . . . . . . . 4 1 9 25 . 3 Melee Attacks 1 | . . . . . . . . . . . . . . . . . . . . . 1 . . Impact 1 | . . . . . . . . . . . . . . . . . . . . . 1 . . Slashing . | . . . . . . . . . . . . . . . . . . . . . . . . Piercing . | . . . . . . . . . . . . . . . . . . . . . . . . Sneak Attacks . | . . . . . . . . . . . . . . . . . . . . . . . . Combat Hostiles . | . . . . . . . . . . . . . . . . . . . . . . . . Follow-up Attacks . | . . . . . . . . . . . . . . . . . . . . . . . . Damage Inflicted 63165 | . 170 140 214 1409 1706 269 1740 42 87 22 1696 3812 1858 960 961 4002 1077 3178 408 7774 8361 16200 7079 Guns 43890 | . 88 50 214 1409 1706 269 1740 42 87 22 955 2950 1578 960 961 2953 939 . . 290 4062 16149 6466 Cannons 16137 | . 82 90 . . . . . . . . . 738 190 . . . 138 3178 408 6572 4259 . 482 Explosions 3076 | . . . . . . . . . . . 741 124 90 . . 1042 . . . 912 . 51 116 Melee 40 | . . . . . . . . . . . . . . . . . . . . . 40 . . Ramming 22 | . . . . . . . . . . . . . . . . 7 . . . . . . 15 Kinetic 59131 | . 170 140 214 1409 1706 269 1740 42 87 22 955 3688 1768 960 961 2326 1077 3178 408 6862 8052 16149 6948 Thermal 1020 | . . . . . . . . . . . . 124 . . . 627 . . . . 269 . . Explosive 2630 | . . . . . . . . . . . 741 . 90 . . 836 . . . 912 . 51 . Electromagnetic 322 | . . . . . . . . . . . . . . . . 206 . . . . . . 116 Impact 40 | . . . . . . . . . . . . . . . . . . . . . 40 . . Slashing . | . . . . . . . . . . . . . . . . . . . . . . . . Piercing . | . . . . . . . . . . . . . . . . . . . . . . . . Highest Corruption 32 | . . . . . . . 2 2 2 . . 10 10 11 11 24 . 6 . 3 4 14 32 Average Corruption 7 | . . . . . . . 1 2 2 . . 6 10 10 11 13 . 3 . 2 3 9 15 Corruption Purged . | . . . . . . . . . . . . . . . . . . . . . . . . Corruption Blocked 4 | . . . . . . . . . . . . . . . . . . . . . . . 4 Effects 584 | . . . . . . . 8 28 3 . . 55 108 17 12 25 . 6 . 11 63 145 103 Message Errors 117 | . . . . . . . 3 4 1 . . 13 16 2 2 4 . 2 . 2 8 30 30 Matter Fused 126 | . . . . . . . 4 9 2 . . 14 27 4 1 5 . 1 . 1 14 27 17 Heat Flow Errors 75 | . . . . . . . 1 3 . . . 4 11 2 2 6 . 1 . 1 9 22 13 Energy Discharges 71 | . . . . . . . . 4 . . . 2 20 1 2 2 . 2 . 2 7 16 13 Parts Rejected 10 | . . . . . . . . . . . . 1 2 1 . 2 . . . . 2 1 1 Data Loss (minor) 77 | . . . . . . . . 4 . . . 11 16 2 1 2 . . . 3 9 17 12 Data Loss (major) 32 | . . . . . . . . 1 . . . 3 6 1 . 2 . . . 1 6 8 4 Misfires 29 | . . . . . . . . 2 . . . 4 5 3 4 . . . . . 3 4 4 Alerts 10 | . . . . . . . . 1 . . . 2 1 1 . . . . . . 1 3 1 Misdirections 4 | . . . . . . . . . . . . . 1 . . . . . . . . . 3 Weapon Failures 33 | . . . . . . . . . . . . 1 3 . . 2 . . . 1 4 17 5 Overload Shots . | . . . . . . . . . . . . . . . . . . . . . . . . Overflow Damage 674 | . 2 . . . . . . . . . . 48 . . . . 34 277 . 271 30 . 12 Projectiles 628 | . 2 . . . . . . . . . . 2 . . . . 34 277 . 271 30 . 12 Explosions 46 | . . . . . . . . . . . . 46 . . . . . . . . . . . Melee . | . . . . . . . . . . . . . . . . . . . . . . . . Knockbacks 116 | . 1 . . . . . . . . . . 10 7 . . . . 25 . 32 32 . 9 Impact 1 | . . . . . . . . . . . . . . . . . . . . . . . 1 Kinetic 101 | . 1 . . . . . . . . . . 9 7 . . . . 17 . 30 29 . 8 Secondary 14 | . . . . . . . . . . . . 1 . . . . . 8 . 2 3 . . Self-Inflicted Damage 178 | . . . . . . . . . . . . 92 . . . 66 . . . . . 13 7 Shots 7 | . . . . . . . . . . . . 2 . . . 1 . . . . . 1 3 Rammed 2 | . . . . . . . . . . . . . . . . 1 . . . . . . 1 Targets Rammed 2 | . . . . . . . . . . . . . . . . 1 . . . . . . 1 Kicked . | . . . . . . . . . . . . . . . . . . . . . . . . Crushed . | . . . . . . . . . . . . . . . . . . . . . . . . Highest Temperature 745 | . 18 6 11 37 267 . 276 214 . . 745 219 236 179 176 266 . 60 . 414 249 269 483 Average Temperature 84 | . 8 3 5 10 101 . 84 111 . . 264 77 101 90 79 72 . 24 . 103 64 74 75 Received Heat Transfer 4050 | . 33 . 54 216 552 . 229 . . . 213 423 17 59 35 548 9 78 81 567 260 189 487 Effects 20 | . . . . . 1 . . 1 . . 10 . . . . . . . . 4 . . 4 Shutdowns 8 | . . . . . . . . . . . 2 . . . . . . . . 2 . . 4 Energy Bleed 3 | . . . . . 1 . . . . . . . . . . . . . . 2 . . . Interference 1 | . . . . . . . . 1 . . . . . . . . . . . . . . . Short Circuit 4 | . . . . . . . . . . . 4 . . . . . . . . . . . . Damage (major) 3 | . . . . . . . . . . . 3 . . . . . . . . . . . . Damage (core) 1 | . . . . . . . . . . . 1 . . . . . . . . . . . . Siege Activations 9 | . . . . . . . . . . . . . . . . . . . 1 3 3 1 1 Total Turns 291 | . . . . . . . . . . . . . . . . . . . 14 64 97 74 42 Longest Duration 74 | . . . . . . . . . . . . . . . . . . . 14 24 73 74 42 Robots Corrupted . | . . . . . . . . . . . . . . . . . . . . . . . . Combat Hostiles . | . . . . . . . . . . . . . . . . . . . . . . . . Parts Fried 5 | . . . . . . . . . . . . . 2 3 . . . . . . . . . Impact Corruptions 3 | . . . . . . . . . . . . . . . . . . 1 . 1 . . 1 Robots Melted . | . . . . . . . . . . . . . . . . . . . . . . . . Combat Hostiles . | . . . . . . . . . . . . . . . . . . . . . . . . Parts Melted 4 | . . . 1 . . . . . . . . . . . . 3 . . . . . . . Heat Transferred 1954 | . . . . . . . . . . . . 100 . . . 1450 . . . . 404 . . Parts Sabotaged 1 | . . . . . . . . . . . . . . . . . . . . . . 1 . Parts Stolen . | . . . . . . . . . . . . . . . . . . . . . . . . Parts Stripped . | . . . . . . . . . . . . . . . . . . . . . . . . Power Chain Reactions . | . . . . . . . . . . . . . . . . . . . . . . . . Missiles Intercepted . | . . . . . . . . . . . . . . . . . . . . . . . . Alert | -11 -10 -10 -9 -9 -9 -9 -7 -7 -7 -6 -6 -5 -5 -5 -5 -5 -4 -3 -2 -1 -1 -1 -1 ------- Run | Scr Mat Min Mat Sto Gar Rec Fac Low Low Fac DSF Fac Ext Cet Arc Hub Fac Res Res Acc Gar Acc Com Peak Influence 1469 | . 50 84 209 417 1052 420 968 . . 28 189 418 158 366 198 1012 334 430 214 764 1469 749 252 Initial 909 | . . 13 2 . 57 341 909 . . 24 14 73 . 44 87 47 302 22 181 . 445 667 . Average 321 | . 7 45 63 231 627 142 489 . . 25 115 125 50 172 166 473 246 78 141 359 1089 422 83 Maximum Alert Level 4 | . . . 1 2 3 2 3 . . . . 2 . 1 . 3 1 2 1 3 4 3 1 Low Security (%) 54 | 100 100 100 98 45 12 67 21 . . 100 100 85 100 75 100 24 27 92 58 39 . 16 94 Level 1 13 | . . . 1 53 14 23 26 . . . . 13 . 24 . 16 72 5 41 2 . 21 5 Level 2 16 | . . . . 1 32 8 26 . . . . 1 . . . 33 . 2 . 43 8 56 . Level 3 9 | . . . . . 41 . 24 . . . . . . . . 25 . . . 13 35 6 . Level 4 5 | . . . . . . . . . . . . . . . . . . . . . 56 . . Level 5 . | . . . . . . . . . . . . . . . . . . . . . . . . High Security . | . . . . . . . . . . . . . . . . . . . . . . . . Max Security . | . . . . . . . . . . . . . . . . . . . . . . . . Sterilizations 1 | . . . . . . . . . . . 1 . . . . . . . . . . . . Squads Dispatched 72 | . . . . 6 . . 2 . . . 2 6 5 1 . 7 4 4 1 12 . 16 6 Investigation 7 | . . . . . . . . . . . . 1 2 1 . 1 . 1 . 1 . . . Extermination 28 | . . . . . . . 2 . . . . 3 . . . 1 . 3 1 3 . 10 5 Reinforcement 20 | . . . . 3 . . . . . . 2 2 3 . . 5 1 . . 1 . 2 1 Assault 5 | . . . . . . . . . . . . . . . . . . . . 1 . 4 . Garrison 12 | . . . . 3 . . . . . . . . . . . . 3 . . 6 . . . Intercept . | . . . . . . . . . . . . . . . . . . . . . . . . Searches Triggered 1 | . . . . . . . 1 . . . . . . . . . . . . . . . . Construction Impeded 5 | . . . . 1 . . . . . . . 1 1 . . 1 . . . 1 . . . Haulers Reinforced 2 | . . . . . . . . . . . . . . . . 1 . . . . . 1 . Active Scanning Responses 2 | . . . . . . . . . . . . . . . . . . 1 . 1 . . . Cargo Convoy Interrupts 1 | . . . . . . . 1 . . . . . . . . . . . . . . . . Stealth | -11 -10 -10 -9 -9 -9 -9 -7 -7 -7 -6 -6 -5 -5 -5 -5 -5 -4 -3 -2 -1 -1 -1 -1 --------- Run | Scr Mat Min Mat Sto Gar Rec Fac Low Low Fac DSF Fac Ext Cet Arc Hub Fac Res Res Acc Gar Acc Com Distress Signals 14 | . . . 2 1 . . 2 . . . . . . 2 . 1 . . . 3 . 1 2 Communications Jammed 50 | . . . . . . . . . . . . . . . . . . 2 . . 29 19 . Distress Signals 40 | . . . . . . . . . . . . . . . . . . 2 . . 29 9 . Times Spotted 543 | . 4 2 10 31 26 18 39 2 2 . 9 35 28 28 12 45 4 17 1 40 42 99 49 Peak Tracking Total 12 | . 2 1 2 5 5 4 6 2 2 . 8 5 4 6 1 12 3 6 1 6 5 6 11 Tactical Retreats 24 | . . . . . 1 . 1 . . . . 5 . 1 . 2 . 2 . . 1 6 5 Traps | -11 -10 -10 -9 -9 -9 -9 -7 -7 -7 -6 -6 -5 -5 -5 -5 -5 -4 -3 -2 -1 -1 -1 -1 ------- Run | Scr Mat Min Mat Sto Gar Rec Fac Low Low Fac DSF Fac Ext Cet Arc Hub Fac Res Res Acc Gar Acc Com Traps Triggered 20 | . . . . . . . 2 . . . 2 . 1 . . 3 1 1 . . 6 2 2 Indirectly 2 | . . . . . . . . . . . . . . . . 2 . . . . . . . Trap Hack Attempts . | . . . . . . . . . . . . . . . . . . . . . . . . Triggered . | . . . . . . . . . . . . . . . . . . . . . . . . Disarmed 3 | . . . . 3 . . . . . . . . . . . . . . . . . . . Reprogrammed 3 | . . . . 3 . . . . . . . . . . . . . . . . . . . Reused . | . . . . . . . . . . . . . . . . . . . . . . . . Traps Extracted . | . . . . . . . . . . . . . . . . . . . . . . . . Installed . | . . . . . . . . . . . . . . . . . . . . . . . . Triggered 2 | . . . . . . . . 1 . . . . . . . . . . . . . . 1 Machines | -11 -10 -10 -9 -9 -9 -9 -7 -7 -7 -6 -6 -5 -5 -5 -5 -5 -4 -3 -2 -1 -1 -1 -1 ---------- Run | Scr Mat Min Mat Sto Gar Rec Fac Low Low Fac DSF Fac Ext Cet Arc Hub Fac Res Res Acc Gar Acc Com Machines Disabled 56 | . . . . . 4 3 . . . 1 1 5 9 4 4 18 . 1 . . 4 2 . Max in Single Turn 11 | . . . . . 1 . . . . 1 1 4 1 1 1 11 . 1 . . 1 1 . Garrison Relay 8 | . . . . . 4 . . . . . . . . . . . . . . . 4 . . Phase Generator 1 | . . . . . . . . . . . . . . . . . . . . . . . 1 Network Hub 1 | . . . . . . . . . . . . . . . . 1 . . . . . . . Energy Cycler 1 | . . . . . . . . . . . . . . . . . . . . . . 1 . Machines Sabotaged . | . . . . . . . . . . . . . . . . . . . . . . . . Garrisons Compromised . | . . . . . . . . . . . . . . . . . . . . . . . . Overloaded Fab Kills . | . . . . . . . . . . . . . . . . . . . . . . . . Hacking | -11 -10 -10 -9 -9 -9 -9 -7 -7 -7 -6 -6 -5 -5 -5 -5 -5 -4 -3 -2 -1 -1 -1 -1 --------- Run | Scr Mat Min Mat Sto Gar Rec Fac Low Low Fac DSF Fac Ext Cet Arc Hub Fac Res Res Acc Gar Acc Com Machines Accessed 53 | . 3 1 2 8 . 5 3 1 . 1 . 3 11 1 1 . . 3 3 3 . . 4 Terminals 47 | . 3 1 2 7 . 5 3 1 . 1 . 2 11 1 . . . 2 2 2 . . 4 Fabricators 3 | . . . . . . . . . . . . 1 . . . . . 1 1 . . . . Repair Stations . | . . . . . . . . . . . . . . . . . . . . . . . . Recycling Units . | . . . . . . . . . . . . . . . . . . . . . . . . Scanalyzers . | . . . . . . . . . . . . . . . . . . . . . . . . Garrison Access 2 | . . . . 1 . . . . . . . . . . . . . . . 1 . . . Total Hacks 117 | . 6 2 4 24 . 9 5 1 . 1 . 7 22 3 1 . . 9 10 6 . . 7 Successful 70 | . 2 2 3 15 . 7 4 1 . 1 . 3 15 . 1 . . 4 6 3 . . 3 Failed 47 | . 4 . 1 9 . 2 1 . . . . 4 7 3 . . . 5 4 3 . . 4 Catastrophic 5 | . . . . . . . . . . . . 1 1 . . . . . 1 1 . . 1 Database Lockouts . | . . . . . . . . . . . . . . . . . . . . . . . . Manual 11 | . 5 2 . . . 2 . . . . . 1 . 1 . . . . . . . . . Terminals 109 | . 6 2 4 23 . 9 5 1 . 1 . 6 22 3 . . . 7 8 5 . . 7 Fabricators 5 | . . . . . . . . . . . . 1 . . . . . 2 2 . . . . Repair Stations . | . . . . . . . . . . . . . . . . . . . . . . . . Recycling Units . | . . . . . . . . . . . . . . . . . . . . . . . . Scanalyzers . | . . . . . . . . . . . . . . . . . . . . . . . . Garrison Access 2 | . . . . 1 . . . . . . . . . . . . . . . 1 . . . Terminal Hacks 66 | . 2 2 3 14 . 7 4 1 . 1 . 2 15 . 1 . . 4 5 2 . . 3 Record 11 | . . . 1 . . . . 1 . . . . 1 . 1 . . . 4 1 . . 2 Robot Analysis 6 | . . . 2 1 . . . . . . . 1 1 . . . . 1 . . . . . Prototype ID Bank 3 | . . . . 1 . . 1 . . . . . 1 . . . . . . . . . . Open Door 10 | . . . . 2 . . . . . . . . 8 . . . . . . . . . . Open DSF 2 | . . . . . . . 1 . . 1 . . . . . . . . . . . . . Level Access Points 1 | . . 1 . . . . . . . . . . . . . . . . . . . . . Branch Access Points 6 | . 1 1 . 1 . . 1 . . . . 1 . . . . . . . 1 . . . Unreport Threat 5 | . . . . . . 3 . . . . . . 1 . . . . 1 . . . . . Locate Traps 4 | . 1 . . 2 . . . . . . . . 1 . . . . . . . . . . Disarm Traps 1 | . . . . 1 . . . . . . . . . . . . . . . . . . . Reprogram Traps 1 | . . . . 1 . . . . . . . . . . . . . . . . . . . Dispatch Records 1 | . . . . 1 . . . . . . . . . . . . . . . . . . . Recall Investigation 1 | . . . . 1 . . . . . . . . . . . . . . . . . . . Hauler Manifests 1 | . . . . 1 . . . . . . . . . . . . . . . . . . . Registered Components 5 | . . . . 1 . 1 1 . . . . . . . . . . 1 1 . . . . Registered Prototypes 2 | . . . . . . 1 . . . . . . 1 . . . . . . . . . . Zone Layout 5 | . . . . 1 . 2 . . . . . . 1 . . . . 1 . . . . . Disengage Seal 1 | . . . . . . . . . . . . . . . . . . . . . . . 1 Fabricator Hacks 2 | . . . . . . . . . . . . 1 . . . . . . 1 . . . . Network Status 2 | . . . . . . . . . . . . 1 . . . . . . 1 . . . . Repair Station Hacks . | . . . . . . . . . . . . . . . . . . . . . . . . Recycling Unit Hacks . | . . . . . . . . . . . . . . . . . . . . . . . . Scanalyzer . | . . . . . . . . . . . . . . . . . . . . . . . . Garrison Access Hacks 2 | . . . . 1 . . . . . . . . . . . . . . . 1 . . . Unlock Access 2 | . . . . 1 . . . . . . . . . . . . . . . 1 . . . Unauthorized Hacks . | . . . . . . . . . . . . . . . . . . . . . . . . Terminals . | . . . . . . . . . . . . . . . . . . . . . . . . Fabricators . | . . . . . . . . . . . . . . . . . . . . . . . . Repair Stations . | . . . . . . . . . . . . . . . . . . . . . . . . Recycling Units . | . . . . . . . . . . . . . . . . . . . . . . . . Scanalyzers . | . . . . . . . . . . . . . . . . . . . . . . . . Garrison Access . | . . . . . . . . . . . . . . . . . . . . . . . . Data Cores Recovered 1 | . . . . . . . . . . . . . . . . . . 1 . . . . . Used 1 | . . . . . . . . . . . . . . . . . . 1 . . . . . Hacking Detections 34 | . 2 1 2 3 . 3 3 1 . . . 3 4 1 . . . 2 3 3 . . 3 Full Trace Events 4 | . . . . . . . . . . . . 1 2 1 . . . . . . . . . Feedback Events . | . . . . . . . . . . . . . . . . . . . . . . . . Feedback Blocked . | . . . . . . . . . . . . . . . . . . . . . . . . Robot Schematics Acquired . | . . . . . . . . . . . . . . . . . . . . . . . . Robots Built . | . . . . . . . . . . . . . . . . . . . . . . . . Authchips . | . . . . . . . . . . . . . . . . . . . . . . . . Time . | . . . . . . . . . . . . . . . . . . . . . . . . Total Robot Build Rating . | . . . . . . . . . . . . . . . . . . . . . . . . Part Schematics Acquired . | . . . . . . . . . . . . . . . . . . . . . . . . Parts Built . | . . . . . . . . . . . . . . . . . . . . . . . . Authchips . | . . . . . . . . . . . . . . . . . . . . . . . . Time . | . . . . . . . . . . . . . . . . . . . . . . . . Total Part Build Rating . | . . . . . . . . . . . . . . . . . . . . . . . . Parts Repaired . | . . . . . . . . . . . . . . . . . . . . . . . . Time . | . . . . . . . . . . . . . . . . . . . . . . . . Parts Recycled . | . . . . . . . . . . . . . . . . . . . . . . . . Recycled Matter . | . . . . . . . . . . . . . . . . . . . . . . . . Retrieved Matter . | . . . . . . . . . . . . . . . . . . . . . . . . Retrieved Components . | . . . . . . . . . . . . . . . . . . . . . . . . Parts Scanalyzed . | . . . . . . . . . . . . . . . . . . . . . . . . Part Schematics Acquired . | . . . . . . . . . . . . . . . . . . . . . . . . Parts Damaged . | . . . . . . . . . . . . . . . . . . . . . . . . Bothacking | -11 -10 -10 -9 -9 -9 -9 -7 -7 -7 -6 -6 -5 -5 -5 -5 -5 -4 -3 -2 -1 -1 -1 -1 ------------ Run | Scr Mat Min Mat Sto Gar Rec Fac Low Low Fac DSF Fac Ext Cet Arc Hub Fac Res Res Acc Gar Acc Com Used RIF Installer 2 | . . . . . 1 . . . . . . . . . . . . . . . 1 . . Patrol Navigation 1 | . . . . . . . . . . . . . . . . . . . . . 1 . . Robots Hacked 2 | . . . . . . . 2 . . . . . . . . . . . . . . . . Non-combat 1 | . . . . . . . 1 . . . . . . . . . . . . . . . . Combat 1 | . . . . . . . 1 . . . . . . . . . . . . . . . . Robot Hacks Applied 7 | . . . . . . . 7 . . . . . . . . . . . . . . . . parse_system 1 | . . . . . . . 1 . . . . . . . . . . . . . . . . no_distress 1 | . . . . . . . 1 . . . . . . . . . . . . . . . . find_shortcuts 1 | . . . . . . . 1 . . . . . . . . . . . . . . . . link_complan 1 | . . . . . . . 1 . . . . . . . . . . . . . . . . broadcast_data 1 | . . . . . . . 1 . . . . . . . . . . . . . . . . disrupt_area 1 | . . . . . . . 1 . . . . . . . . . . . . . . . . streamctrl_high 1 | . . . . . . . 1 . . . . . . . . . . . . . . . . Relay Couplers Released 30 | . . . . . 16 . . . . . . . . . . . . . . . 14 . . Machine Destruction 30 | . . . . . 16 . . . . . . . . . . . . . . . 14 . . Attached 2 | . . . . . . . 1 . . . . . . . . . . . . . 1 . . Fabnet Peak Effective % . | . . . . . . . . . . . . . . . . . . . . . . . . Robots Rewired 30 | . . . . . . 27 . . . . . . . . . . . . . . 3 . . Allies Hacked 2 | . . . . . . . 1 . . . . . 1 . . . . . . . . . . Hacks Repelled . | . . . . . . . . . . . . . . . . . . . . . . . . Allies | -11 -10 -10 -9 -9 -9 -9 -7 -7 -7 -6 -6 -5 -5 -5 -5 -5 -4 -3 -2 -1 -1 -1 -1 -------- Run | Scr Mat Min Mat Sto Gar Rec Fac Low Low Fac DSF Fac Ext Cet Arc Hub Fac Res Res Acc Gar Acc Com Total Allies 58 | . . 3 . 10 . 27 1 . . . . . 14 . . . . . . . 3 . . Largest Group 23 | . . 3 3 10 . 23 15 . . . . . 7 7 2 . . . . . 3 3 . Highest-Rated Group 341 | . . 40 40 88 . 275 151 . . . . . 341 331 175 . . . . . 207 207 . Highest-Rated Ally 159 | . . 16 16 16 . 27 27 . . . . . 159 152 136 . . . . . 69 69 . Total Orders 2 | . . . . 1 . . . . . . . . . . . . . . . . . 1 . ROAM 1 | . . . . 1 . . . . . . . . . . . . . . . . . . . EXPLORE 1 | . . . . . . . . . . . . . . . . . . . . . . 1 . Ally Attacks 533 | . . . 42 87 . 147 21 . . . . . 137 73 2 . . . . . 3 21 . Total Damage 8328 | . . . 404 808 . 1276 178 . . . . . 2656 1781 14 . . . . . 95 1116 . Kills 91 | . . . 4 12 . 35 3 . . . . . 14 18 . . . . . . 1 4 . Allies Corrupted 1 | . . . . . . . . . . . . . . . . . . . . . . 1 . Allies Melted . | . . . . . . . . . . . . . . . . . . . . . . . . Intel | -11 -10 -10 -9 -9 -9 -9 -7 -7 -7 -6 -6 -5 -5 -5 -5 -5 -4 -3 -2 -1 -1 -1 -1 ------- Run | Scr Mat Min Mat Sto Gar Rec Fac Low Low Fac DSF Fac Ext Cet Arc Hub Fac Res Res Acc Gar Acc Com Robot Analysis Total 6 | . . . 2 1 . . . . . . . 1 1 . . . . 1 . . . . . Derelict Logs Recovered 2 | . . . . . . . . 2 . . . . . . . . . . . . . . . Drone Launches 2 | . . . . . . . . . . . . . . . . . . . . . . 2 . Drone Recoveries . | . . . . . . . . . . . . . . . . . . . . . . . . Exploration | -11 -10 -10 -9 -9 -9 -9 -7 -7 -7 -6 -6 -5 -5 -5 -5 -5 -4 -3 -2 -1 -1 -1 -1 ------------- Run | Scr Mat Min Mat Sto Gar Rec Fac Low Low Fac DSF Fac Ext Cet Arc Hub Fac Res Res Acc Gar Acc Com Turns Passed 28131 | 114 559 694 459 846 1231 1246 1614 2314 241 99 276 2187 2748 533 333 509 555 1076 567 1148 2530 4116 2136 Spaces Moved 13484 | 66 315 412 243 396 614 639 922 1582 161 60 124 947 1206 277 164 174 284 551 336 518 1062 1638 793 Core 2 | 2 . . . . . . . . . . . . . . . . . . . . . . . Treads 13478 | 64 315 412 243 396 614 639 922 1582 161 60 124 947 1206 277 164 174 284 551 336 518 1062 1638 789 Legs 4 | . . . . . . . . . . . . . . . . . . . . . . . 4 Wheels . | . . . . . . . . . . . . . . . . . . . . . . . . Hover . | . . . . . . . . . . . . . . . . . . . . . . . . Flight . | . . . . . . . . . . . . . . . . . . . . . . . . Fastest Speed 50 | 50 160 160 160 160 160 160 145 145 145 145 145 155 160 160 160 160 160 160 160 160 145 145 100 Average Speed 173 | 156 160 160 160 160 160 160 147 145 145 145 153 186 201 160 160 160 160 160 160 163 187 201 224 Slowest Speed 480 | 160 160 160 160 160 160 160 160 145 145 145 156 480 320 160 160 160 160 160 160 240 230 230 225 Overloaded Moves . | . . . . . . . . . . . . . . . . . . . . . . . . Propulsion Burnouts . | . . . . . . . . . . . . . . . . . . . . . . . . Robots Hopped . | . . . . . . . . . . . . . . . . . . . . . . . . Cave-ins Triggered . | . . . . . . . . . . . . . . . . . . . . . . . . Exploration Rate (%) 44 | 5 32 73 23 65 78 95 21 98 16 1 83 19 96 65 93 29 8 10 8 7 86 35 23 Regions Visited 23 Branch Regions 10 Pre-discovered Areas 1 | . . . . . . . . 1 . . . . . . . . . . . . . . . Known Exits Taken 20 | 1 1 1 1 1 . 1 1 1 1 1 . 1 1 1 1 1 1 1 1 1 . 1 . Unknown Exits Taken . | . . . . . . . . . . . . . . . . . . . . . . . . Scrap Searched 14 | . . 1 . . . . . 13 . . . . . . . . . . . . . . . Spaces Dug 34 | . . . . . . . . . . . . . 7 . . 10 . . . . 5 12 . Terrain Destroyed 532 | . . . . . . . 4 1 . . 30 58 15 2 5 226 . 14 1 48 15 86 27 Melee . | . . . . . . . . . . . . . . . . . . . . . . . . Projectile 132 | . . . . . . . 4 1 . . . 2 4 2 5 25 . 14 1 29 15 4 26 AOE 397 | . . . . . . . . . . . 30 55 11 . . 200 . . . 19 . 82 . Terrain Rammed . | . . . . . . . . . . . . . . . . . . . . . . . . Walls Destroyed . | . . . . . . . . . . . . . . . . . . . . . . . . Machines Disabled . | . . . . . . . . . . . . . . . . . . . . . . . . Actions | -11 -10 -10 -9 -9 -9 -9 -7 -7 -7 -6 -6 -5 -5 -5 -5 -5 -4 -3 -2 -1 -1 -1 -1 --------- Run | Scr Mat Min Mat Sto Gar Rec Fac Low Low Fac DSF Fac Ext Cet Arc Hub Fac Res Res Acc Gar Acc Com Total 15984 | 74 356 435 298 508 737 837 1062 1595 163 70 159 1192 1397 335 200 262 336 681 357 647 1319 2010 954 Wait 508 | . 22 15 28 25 38 4 1 6 . 2 . 100 73 8 7 4 12 72 10 21 19 18 23 Move 13459 | 65 314 411 242 395 612 638 921 1581 160 59 123 946 1205 276 163 173 283 550 335 517 1060 1637 793 Hop . | . . . . . . . . . . . . . . . . . . . . . . . . Pick Up 143 | 3 9 2 8 7 2 . 10 2 . 2 2 12 6 4 1 2 1 7 1 8 18 29 7 Fast Attach 150 | 6 . . 1 3 . . 2 . . 3 . 19 16 6 3 3 7 8 3 8 21 31 10 Attach 100 | . 2 . 2 . 2 . 8 1 . . 5 10 2 . 3 3 6 4 1 9 17 12 13 Detach 24 | . . . . . . . . . . . . 2 2 4 1 . . 4 . 1 3 6 1 Swap 88 | . 1 . 6 7 2 1 7 . . . 5 1 11 5 . 5 . 1 . 2 14 15 5 Drop 175 | . 1 1 4 16 2 . 9 1 . 3 . 11 16 14 4 2 . 6 3 1 15 50 16 Fire 1135 | . 7 6 7 55 79 16 103 4 3 1 24 91 62 18 18 69 27 29 4 80 136 211 85 Melee 1 | . . . . . . . . . . . . . . . . . . . . . 1 . . Ram . | . . . . . . . . . . . . . . . . . . . . . . . . Kick . | . . . . . . . . . . . . . . . . . . . . . . . . Crush 2 | . . . . . . . . . . . . . . . . 1 . . . . . . 1 Escape Stasis 10 | . . . . . . . . . . . . . 4 . . . . . . . 6 . . Rewire 189 | . . . . . . 178 1 . . . . . . . . . . . . . 9 1 . Trap . | . . . . . . . . . . . . . . . . . . . . . . . . Miscellaneous . | . . . . . . . . . . . . . . . . . . . . . . . . Route ------- -11/Scrapyard -10/Materials (discovered 3 exits: *Mat / *Min x2) -10/Mines (discovered 2 exits: *Mat x2) -9/Materials (discovered 2 exits: *Min / *Sto) -9/Storage (discovered 2 exits: Rec / Gar) -9/Garrison (discovered 3 exits: *Rec x3) -9/Recycling -7/Factory (discovered 2 exits: *Low x2) -7/Lower Caves -7/Lower Caves -6/Factory -6/DSF -5/Factory (discovered 5 exits: *Fac / Upp x2 / *Ext x2) -5/Extension (discovered 2 exits: *Fac / *Cet) -5/Cetus (discovered 3 exits: *Fac x2 / *Arc) -5/Archives (discovered 3 exits: *Fac / *Hub x2) -5/Hub_04(d) -4/Factory -3/Research -2/Research -1/Access (discovered 2 exits: Com / Gar) -1/Garrison (discovered 3 exits: *Acc x3) -1/Access -1/Command History --------- Turn | Location | Event 7 | -11/Scrapyard | Identified exit to Materials 7 | -11/Scrapyard | Discovered exit to Materials (range 16) 115 | -11/Scrapyard | Entered Materials 115 | -10/Materials | Evolved 1 slot: Utility x1 251 | -10/Materials | Identified exit to Materials 251 | -10/Materials | Discovered exit to Materials (range 16) 316 | -10/Materials | Identified exit to Mines 318 | -10/Materials | Build established: Hacker-Mutant 674 | -10/Materials | Entered Mines 1177 | -10/Mines | YI-UF0 nonchalantly dropped a Grenade Launcher on the ground 1201 | -10/Mines | Assisted by bots powering up and referring to "LRC-V3" 1368 | -10/Mines | Entered Materials 1368 | -9/Materials | Accompanied by 3 allies 1368 | -9/Materials | Evolved 2 slots: Propulsion x1, Utility x1 1479 | -9/Materials | Identified exit to Storage 1479 | -9/Materials | Discovered exit to Storage (range 9) 1634 | -9/Materials | Identified exit to Mines 1634 | -9/Materials | Discovered exit to Mines (range 16) 1827 | -9/Materials | Entered Storage 1827 | -9/Storage | Accompanied by 1 ally 2294 | -9/Storage | Assisted by bots powering up and referring to "LRC-V3" 2367 | -9/Storage | Garrison activated, responded to threat 2442 | -9/Storage | Identified exit to Recycling 2671 | -9/Storage | Identified exit to Garrison 2673 | -9/Storage | Entered Garrison 2702 | -9/Garrison | Triggered checkpoint 2737 | -9/Garrison | Garrison Relay disabled 2846 | -9/Garrison | Triggered checkpoint 2889 | -9/Garrison | Destroyed 7 combat bots 2985 | -9/Garrison | Discovered exit to Recycling (range 10) 3062 | -9/Garrison | Triggered checkpoint 3196 | -9/Garrison | Garrison Relay disabled 3318 | -9/Garrison | Triggered checkpoint 3395 | -9/Garrison | Garrison Relay disabled 3458 | -9/Garrison | Discovered exit to Recycling (range 15) 3556 | -9/Garrison | Triggered checkpoint 3618 | -9/Garrison | Triggered checkpoint 3666 | -9/Garrison | Garrison Relay disabled 3734 | -9/Garrison | Discovered exit to Recycling (range 9) 3756 | -9/Garrison | Build established: Scavenger-Mutant 3763 | -9/Garrison | Installed Relay Interface Framework 3838 | -9/Garrison | Triggered checkpoint 3904 | -9/Garrison | Entered Recycling 3927 | -9/Recycling | Spotter reported a threat 3954 | -9/Recycling | Spotter reported a threat 4047 | -9/Recycling | Spotter reported a threat 4088 | -9/Recycling | Spotter reported a threat 4090 | -9/Recycling | Spotter reported a threat 4095 | -9/Recycling | Spotter reported a threat 4100 | -9/Recycling | Spotter reported a threat 4141 | -9/Recycling | Spotter reported a threat 4143 | -9/Recycling | Spotter reported a threat 4247 | -9/Recycling | Spotter reported a threat 4250 | -9/Recycling | Build established: Commander-Mutant 4266 | -9/Recycling | Spotter reported a threat 4309 | -9/Recycling | Spotter reported a threat 4315 | -9/Recycling | Spotter reported a threat 4319 | -9/Recycling | Spotter reported a threat 4357 | -9/Recycling | Spotter reported a threat 4407 | -9/Recycling | Spotter reported a threat 4407 | -9/Recycling | Spotter reported a threat 4411 | -9/Recycling | Spotter reported a threat 4458 | -9/Recycling | Spotter reported a threat 4459 | -9/Recycling | Spotter reported a threat 4484 | -9/Recycling | Spotter reported a threat 4487 | -9/Recycling | Spotter reported a threat 4512 | -9/Recycling | Spotter reported a threat 4544 | -9/Recycling | Spotter reported a threat 4565 | -9/Recycling | Spotter reported a threat 4597 | -9/Recycling | Spotter reported a threat 4625 | -9/Recycling | Spotter reported a threat 4757 | -9/Recycling | Spotter reported a threat 4810 | -9/Recycling | Spotter reported a threat 4846 | -9/Recycling | Spotter reported a threat 4846 | -9/Recycling | Spotter reported a threat 4847 | -9/Recycling | Spotter reported a threat 4863 | -9/Recycling | Spotter reported a threat 4900 | -9/Recycling | Spotter reported a threat 4905 | -9/Recycling | Spotter reported a threat 4905 | -9/Recycling | Spotter reported a threat 4918 | -9/Recycling | Spotter reported a threat 4961 | -9/Recycling | Spotter reported a threat 4965 | -9/Recycling | Spotter reported a threat 4965 | -9/Recycling | Spotter reported a threat 4971 | -9/Recycling | Spotter reported a threat 5014 | -9/Recycling | Spotter reported a threat 5014 | -9/Recycling | Spotter reported a threat 5024 | -9/Recycling | Spotter reported a threat 5046 | -9/Recycling | Identified exit to Factory 5046 | -9/Recycling | Discovered exit to Factory (range 15) 5050 | -9/Recycling | Spotter reported a threat 5050 | -9/Recycling | Spotter reported a threat 5050 | -9/Recycling | Spotter reported a threat 5050 | -9/Recycling | Spotter reported a threat 5101 | -9/Recycling | Spotter reported a threat 5101 | -9/Recycling | Spotter reported a threat 5101 | -9/Recycling | Spotter reported a threat 5150 | -9/Recycling | Entered Factory 5150 | -7/Factory | Accompanied by 15 allies 5150 | -7/Factory | Evolved 4 slots: Power x1, Propulsion x1, Utility x2 5550 | -7/Factory | Search patrols dispatched 5801 | -7/Factory | Identified exit to Lower Caves 5954 | -7/Factory | P-60 Hacker assimilated allied Engineer 2a 5958 | -7/Factory | P-60 Hacker assimilated allied Mercenary 2o 5966 | -7/Factory | P-60 Hacker assimilated allied Savior 2a 5968 | -7/Factory | P-60 Hacker assimilated allied Scavenger 2a 6227 | -7/Factory | P-60 Hacker assimilated allied Scavenger 2b 6473 | -7/Factory | Build established: Hacker-Mutant 6760 | -7/Factory | Cargo convoy interrupted 6764 | -7/Factory | Entered Lower Caves 6765 | -7/Lower Caves | Encountered a Warlord checkpoint 6772 | -7/Lower Caves | Learned Factory terminal intel 9052 | -7/Lower Caves | Identified exit to Lower Caves 9052 | -7/Lower Caves | Discovered exit to Lower Caves (range 8) 9078 | -7/Lower Caves | Entered another Lower Caves area 9212 | -7/Lower Caves | Identified exit to Factory 9212 | -7/Lower Caves | Discovered exit to Factory (range 9) 9319 | -7/Lower Caves | Entered Factory 9319 | -6/Factory | Evolved 2 slots: Utility x2 9320 | -6/Factory | Loaded intel: 26 terminal locations 9417 | -6/Factory | Identified exit to DSF 9418 | -6/Factory | Entered DSF 9437 | -6/DSF | Additional patrols routed to DSF 9514 | -6/DSF | Lost 5 parts (1p2n2u) 9559 | -6/DSF | Destroyed 7 combat bots 9561 | -6/DSF | Lost 4 parts (1n3u) 9565 | -6/DSF | Identified exit to Factory 9565 | -6/DSF | Discovered exit to Factory (range 16) 9576 | -6/DSF | Sterilization system engaged 9596 | -6/DSF | Ambient heat levels rising (+10) 9611 | -6/DSF | Ambient heat levels rising (+10) 9626 | -6/DSF | Ambient heat levels rising (+10) 9641 | -6/DSF | Ambient heat levels rising (+10) 9656 | -6/DSF | Ambient heat levels rising (+10) 9671 | -6/DSF | Ambient heat levels rising (+10) 9686 | -6/DSF | Ambient heat levels rising (+10) 9694 | -6/DSF | Entered Factory 9694 | -5/Factory | Evolved 2 slots: Utility x2 10205 | -5/Factory | Identified exit to Upper Caves 10205 | -5/Factory | Identified exit to Extension 11051 | -5/Factory | Lost 3 parts (2n1u) 11426 | -5/Factory | Identified exit to Factory 11426 | -5/Factory | Discovered exit to Factory (range 11) 11659 | -5/Factory | System corruption reached 10% 11698 | -5/Factory | Lost 3 parts (1p2u) 11881 | -5/Factory | Entered Extension 12372 | -5/Extension | Rescued a captive Derelict 12410 | -5/Extension | Rescued a captive Derelict 12411 | -5/Extension | Rescued a captive Derelict 12486 | -5/Extension | Rescued A7 12585 | -5/Extension | Build established: Scavenger-Mutant 12633 | -5/Extension | Rescued a captive Derelict 12634 | -5/Extension | Rescued a captive Derelict 12702 | -5/Extension | Rescued a captive Derelict 12703 | -5/Extension | Rescued a captive Derelict 12706 | -5/Extension | Spotted B-75 Beast 12720 | -5/Extension | Spotted B-75 Beast 12722 | -5/Extension | Allies destroyed B-75 Beast 12741 | -5/Extension | Destroyed B-75 Beast 13102 | -5/Extension | Disrupted transfer network 13727 | -5/Extension | Discovered exit to Factory (range 16) 13729 | -5/Extension | Identified exit to Cetus 13729 | -5/Extension | Discovered exit to Cetus (range 15) 13990 | -5/Extension | Rescued a captive Derelict 13991 | -5/Extension | Rescued a captive Derelict 14120 | -5/Extension | Rescued a captive Derelict 14120 | -5/Extension | Rescued a captive Derelict 14391 | -5/Extension | Rescued a captive Derelict 14391 | -5/Extension | Rescued a captive Derelict 14629 | -5/Extension | Entered Cetus 14629 | -5/Cetus | Accompanied by 7 allies (A7) 14634 | -5/Cetus | Acquired a Cetus Manufacturing Module code from A7 14654 | -5/Cetus | Spotted Cetus Guard 14654 | -5/Cetus | Spotted Cetus Guard 14666 | -5/Cetus | Spotted Cetus Guard 14669 | -5/Cetus | Allies destroyed Cetus Guard 14669 | -5/Cetus | Spotted Cetus Guard 14670 | -5/Cetus | Allies destroyed Cetus Guard 14675 | -5/Cetus | Allies destroyed Cetus Guard 14679 | -5/Cetus | Allies destroyed Cetus Guard 14755 | -5/Cetus | Discovered exit to Factory (range 15) 14828 | -5/Cetus | Cetus Manufacturing Module disabled 14893 | -5/Cetus | Failed to start Cetus Manufacturing Module 14994 | -5/Cetus | Identified exit to Archives 14994 | -5/Cetus | Discovered exit to Archives (range 15) 15023 | -5/Cetus | Spotted Cetus Guard 15024 | -5/Cetus | Spotted Cetus Guard 15029 | -5/Cetus | Spotted Cetus Guard 15031 | -5/Cetus | Allies destroyed Cetus Guard 15031 | -5/Cetus | Allies destroyed Cetus Guard 15032 | -5/Cetus | Destroyed Cetus Guard 15032 | -5/Cetus | Spotted Cetus Guard 15035 | -5/Cetus | Destroyed Cetus Guard 15052 | -5/Cetus | Discovered exit to Factory (range 15) 15060 | -5/Cetus | Met Revision 17 15162 | -5/Cetus | Entered Archives 15162 | -5/Archives | Accompanied by 2 allies (A7) 15257 | -5/Archives | Unable to access archive contents 15271 | -5/Archives | Unable to access archive contents 15279 | -5/Archives | Discovered exit to Factory (range 15) 15291 | -5/Archives | Unable to access archive contents 15297 | -5/Archives | Identified exit to Hub_04(d) 15297 | -5/Archives | Discovered exit to Hub_04(d) (range 16) 15307 | -5/Archives | Unable to access archive contents 15313 | -5/Archives | Discovered exit to Hub_04(d) (range 13) 15495 | -5/Archives | Entered Hub_04(d) 15519 | -5/Hub_04(d) | Discovered exit to Factory (range 15) 15779 | -5/Hub_04(d) | Destroyed 8 combat bots 15875 | -5/Hub_04(d) | Network Hub disabled 15891 | -5/Hub_04(d) | Spotted B-75 Beast 15910 | -5/Hub_04(d) | Spotted Lightning 15947 | -5/Hub_04(d) | Spotted Lightning 15950 | -5/Hub_04(d) | Spotted Lightning 16004 | -5/Hub_04(d) | Entered Factory 16004 | -4/Factory | Evolved 2 slots: Utility x1, Weapon x1 16070 | -4/Factory | Garrison activated, responded to threat 16122 | -4/Factory | Lost 8 parts (2p5u1w) 16141 | -4/Factory | Found Prototype Device 16141 | -4/Factory | Identified Active Sensor Suite 16441 | -4/Factory | Identified exit to Research 16441 | -4/Factory | Discovered exit to Research (range 9) 16534 | -4/Factory | Build established: Scavenger-Gunner 16559 | -4/Factory | Entered Research 16559 | -3/Research | Evolved 2 slots: Power x1, Utility x1 16658 | -3/Research | Found Gamma Bomb Array 17208 | -3/Research | Build established: Scavenger-Skirmisher 17373 | -3/Research | Identified exit to Research 17373 | -3/Research | Discovered exit to Research (range 13) 17635 | -3/Research | Entered another Research area 17635 | -2/Research | Evolved 2 slots: Utility x2 17787 | -2/Research | Spotted B-90 Cyclops 17797 | -2/Research | Destroyed B-90 Cyclops 18101 | -2/Research | Found Fusion Bomb Launcher 18159 | -2/Research | Build established: Scavenger-Gunner 18180 | -2/Research | Identified exit to Access 18180 | -2/Research | Discovered exit to Access (range 5) 18202 | -2/Research | Entered Access 18202 | -1/Access | Evolved 2 slots: Power x1, Weapon x1 18385 | -1/Access | Identified exit to Command 18514 | -1/Access | Build established: Generator-Gunner 18585 | -1/Access | Garrison activated, responded to threat 18704 | -1/Access | Lost 3 parts (1p2n) 18716 | -1/Access | Destroyed 9 combat bots 18952 | -1/Access | First assault squad dispatched 19021 | -1/Access | Lost 4 parts (1p2u1w) 19083 | -1/Access | Lost 4 parts (2u2w) 19349 | -1/Access | Identified exit to Garrison 19350 | -1/Access | Entered Garrison 19400 | -1/Garrison | Triggered checkpoint 19472 | -1/Garrison | Garrison Relay disabled 19488 | -1/Garrison | Triggered checkpoint 19590 | -1/Garrison | Lost 3 parts (1n1u1w) 19676 | -1/Garrison | Triggered checkpoint 19771 | -1/Garrison | Spotted B-99 Colossus 19831 | -1/Garrison | Build established: Scavenger-Gunner 19838 | -1/Garrison | Destroyed B-99 Colossus 19841 | -1/Garrison | Lost 9 parts (3p1n3u2w) 19888 | -1/Garrison | Lost 3 parts (3w) 20072 | -1/Garrison | Triggered checkpoint 20164 | -1/Garrison | Triggered checkpoint 20298 | -1/Garrison | Triggered checkpoint 20408 | -1/Garrison | Build established: Scavenger-Mutant 20440 | -1/Garrison | Triggered checkpoint 20524 | -1/Garrison | Garrison Relay disabled 20568 | -1/Garrison | Identified exit to Access 20568 | -1/Garrison | Discovered exit to Access (range 13) 20604 | -1/Garrison | Expanded RIF knowledge: Patrol Navigation 20747 | -1/Garrison | Build established: Scavenger-Gunner 20780 | -1/Garrison | Discovered exit to Access (range 14) 20796 | -1/Garrison | Triggered checkpoint 20866 | -1/Garrison | Garrison Relay disabled 21078 | -1/Garrison | Triggered checkpoint 21153 | -1/Garrison | Garrison Relay disabled 21246 | -1/Garrison | Discovered exit to Access (range 10) 21874 | -1/Garrison | Build established: Scavenger-Tank 21880 | -1/Garrison | Entered Access 21880 | -1/Access | Accompanied by 3 allies 22037 | -1/Access | Found Hvy. Reflective Plating 22130 | -1/Access | First assault squad dispatched 22407 | -1/Access | P-80 Master assimilated allied Terminator 10c 22535 | -1/Access | Found Antimissile System 22585 | -1/Access | Found Prototype Protection 22585 | -1/Access | Identified Centrium Heavy Armor Plating 22596 | -1/Access | Found Centrium Heavy Armor Plating 23304 | -1/Access | Spotted B-99 Colossus 23570 | -1/Access | Destroyed 9 combat bots 24055 | -1/Access | Spotted B-99 Colossus 24136 | -1/Access | Lost 4 parts (1p2u1w) 24140 | -1/Access | Destroyed B-99 Colossus 24243 | -1/Access | System corruption reached 10% 24431 | -1/Access | Energy Cycler disabled 25978 | -1/Access | Discovered exit to Command (range 8) 25996 | -1/Access | Entered Command 26215 | -1/Command | Found Gamma Bomb Array 27228 | -1/Command | Disengaged cave seal 27228 | -1/Command | Wild derelicts emerged from the dark tunnel 27358 | -1/Command | Phase Generator disabled 27507 | -1/Command | Found Unknown Device 27507 | -1/Command | Identified Quantum Capacitor 28018 | -1/Command | Spotted Alpha 7 28018 | -1/Command | Spotted Striker 28018 | -1/Command | Spotted Executioner 28018 | -1/Command | Spotted Executioner 28018 | -1/Command | Spotted Alpha 7 28018 | -1/Command | Spotted Striker 28018 | -1/Command | Spotted Executioner 28018 | -1/Command | Spotted Executioner 28040 | -1/Command | Core integrity fell below 50% 28051 | -1/Command | Destroyed Striker 28099 | -1/Command | Core integrity fell below 20% 28120 | -1/Command | System corruption reached 30% 28132 | -1/Command | Destroyed by Alpha 7 with Heavy Quantum Rifle Last Messages --------------- 28121_ Acquired Enh. Biometal Leg. 28122_ Slug penetrates Quantum Router. 28122_ Adv. Matter Compressor destroyed. 28123_ Penetrated by Slug. 28123_ P-80 Master resets Alpha 7, system corruption cleaned. 28124_ Penetrated by Slug. 28126_ Critical hit (Destroy). 28126_ Enh. Quantum Rifle destroyed. 28126_ Slug penetrates Wall. 28127_ P-80 Master resets Executioner, system corruption cleaned. 28127_ Penetrated by Slug. 28127_ Slug penetrates Wall. 28128_ P-80 Master resets Executioner, system corruption cleaned. 28129_ P-80 Master resets Alpha 7, system corruption cleaned. 28129_ Penetrated by Slug. 28130_ Enh. Quantum Rifle destroyed. 28130_ Penetrated by Slug. 28130_ Slug penetrates Wall. 28132_ Critical hit (Destroy). 28132_ Exp. Matter Compressor destroyed. Map ----- +----------------------------------------------------+ | ?????????????????????????????????????????????????? | | ?????????????????????????????????????????????????? | | ?????????????????????????????????????????????????? | | ?????????????????????????????????????????????????? | | ?????????????????????????????????????????????????? | | ?????????????????????????????????????????????##### | | ?????????????????????????????????????????????# [ | | ???????????????????????? ??? ???????????????#* | | ?????????????????????? ??? ???????????????# | | ??????????????????? ??? ???????????????# | | ????????????????? ??? ???????????????#* =% | | ??????????????? ##? ???????????????####" | | ??????????????? #? ??????????????????#! | | ???????????????? #? ??????????????????# | | ???????????????? ## #??????????######## | | ????????????? ## #??????????# # | | ???????????? % ## #??????????# # | | ???????????? " %= ;# ##??#??????# + | | ????????????% % """ ## ## #??????# ## | | ??????????? "" ## ##??????# #? | | ??????????? " ;#;#;#;######## #? | | ?????????? % %= !!! ######### | | ?????????? ! ! !!! p + | | ?????????? !%=7!EE %!!! ######### | | ??????????????#########%[%E/%p #???????? | | ??????????????????????# @%#* % % #???????? | | ??????????????????????#* % #% = #???????? | | ??????????????????????#%=! #### #########???????? | | ??????????????????????#////##???###??????????????? | | ?????????????????????#[^^= #????#%#?????????????? | | ?????????????????????# !%!^ #?????# #????????????? | | ????????????????????# ^ ??????# #???????????? | | ????????????????????## ##??????# ???????????? | | ????????????????????? ^ ^^ ????????? ??????????? | | ????????????????????## #??????????#?????????? | | ????????????????????? ????????????????????? | | ?????????????????????# #????????????????????? | | ????????????????????? ^ ????????????????????? | | ?????????????????????# #????????????????????? | | ????????????????????? ????????????????????? | | ????????????????????? ????????????????????? | | ????????????????????? ^ ????????????????????? | | ???????????????????????"""""?????????????????????? | | ?????????????????????????????????????????????????? | | ?????????????????????????????????????????????????? | | ?????????????????????????????????????????????????? | | ?????????????????????????????????????????????????? | | ?????????????????????????????????????????????????? | | ?????????????????????????????????????????????????? | | ?????????????????????????????????????????????????? | +----------------------------------------------------+ Best States ------------- Heat Dissipation 104 Energy Generation 79 Energy Capacity 600 Matter Stores 1200 Matter Capacity 1200 Sight Range 22 Robot Scan Range 20 Terrain Scan Density 10 Jamming Range 16 Armor Coverage 1200 Resistance: KI 60 Resistance: TH 35 Resistance: EX 85 Resistance: EM 60 Resistance: I 35 Resistance: S 35 Resistance: P 35 Utility Shielding 90 Weapon Shielding 90 Point Defense Rating 240 Phase Shifting 15 Evasion (%) 55 Targeting Accuracy 11 Target Analysis 12 Armor Integrity Analysis 30 Recoil Reduction 10 Matter Filtering 75 Kinecelleration 40 Offensive Hacking 20 Defensive Hacking 12 Relay Coupler Types 1 Relay Coupler Value 46 Item Schematics ----------------- None Robot Schematics ------------------ None Fabricated ------------ Nothing Alien Tech Used ----------------- None Achievements -------------- Gunslinger Origins Project G-00 Revising The Future Challenges ------------ None Game ------ Seed LegParticleImmobilizer Manual? 0 Play Time 04:24:43 Cumulative 59.7 hours Start 2022.04.08 @ 13:49:45 End 2022.04.09 @ 15:20:16 Sessions 5 Manual Loads 0 Difficulty Explorer Special Mode None Game No. 14 Rogue 0 Adventurer 1 Explorer 13 Win Type - Total 3 Types 2/0/0/1/0/0/0/0/0 Lore% 38 Gallery% 54 Achievement% 47 Wizard Run 0 Options --------- ASCII 0 Keyboard 0 Movement Arrows Keybinds 0 Fullscreen 0 Font 14/Terminus Map View 76x50 Tactical HUD 1 Map Filters NONE Filters NONE Steam 1 RUN: d545c110-3dbf-44e9-91e3-2f2f7f518d6a